bitfinex-derivatives/quotes_SOLF0:USTF0_20251219
["timestamp","ask_amount","ask_price","bid_price","bid_amount"]
[1766164171043,0.05549427,125.89,125.86,0.05447796]
[1766164172631,0.05549427,125.89,125.82,46.92]
[1766164172828,134.9558,125.91,125.82,46.92]
[1766164173032,7.1533,125.89,125.82,46.92]
[1766164173241,23.7,125.94,125.84,23.4]
[1766164173732,0.06064728,125.9,125.88,0.05910053]
[1766164176635,0.06064728,125.9,125.84,77.4754]
[1766164177944,0.06064728,125.9,125.8,24.31]
[1766164177945,24.06064728,125.9,125.8,24.31]
[1766164178140,0.00061472,125.86,125.84,0.05025568]
[1766164179848,0.00061472,125.86,125.85,7.64932175]
[1766164183444,0.00061472,125.86,125.82,24.31]
[1766164183749,0.00061472,125.86,125.82,46.94]
[1766164183947,0.00061472,125.86,125.84,7.1557]
[1766164184452,0.00061472,125.86,125.84,31.4657]
[1766164186241,0.00061472,125.86,125.85,24.31]
[1766164186445,31.15,125.95,125.85,31.4651]
[1766164186648,31.15,125.95,125.86,46.94]
[1766164187251,15.05780103,125.99,125.85,24.31]
[1766164187252,24.0,125.93,125.85,24.31]
[1766164187453,0.05754342,125.9,125.85,71.25]
[1766164187865,7.1497,125.95,125.86,24.31]
[1766164188046,31.1497,125.95,125.86,24.31]
[1766164188655,24.0,125.94,125.86,24.31]
[1766164188855,0.05565669,125.91,125.89,0.05086416]
[1766164195060,111.2132,125.96,125.89,0.05086416]
[1766164195262,24.0,125.96,125.89,0.05086416]
[1766164195462,7.1499,125.95,125.89,0.05086416]
[1766164195966,0.05296474,125.93,125.89,0.05086416]
[1766164196866,7.20386474,125.93,125.89,0.05086416]
[1766164199258,0.05296474,125.93,125.89,0.05086416]
[1766164201570,31.20396474,125.93,125.89,0.00086416]
[1766164201765,24.05296474,125.93,125.89,0.00086416]
[1766164203373,31.20376474,125.93,125.89,0.00086416]
[1766164204072,24.05296474,125.93,125.89,0.00086416]
[1766164204667,0.05296474,125.93,125.89,0.00086416]
[1766164205975,0.05296474,125.93,125.89,7.34105773]
[1766164206276,0.05296474,125.93,125.89,0.00086416]
[1766164209780,0.00296474,125.93,125.9,30.8823]
[1766164209983,25.24,126.02,125.92,23.73]
[1766164210278,25.24,126.02,125.93,31.07019357]
[1766164210480,25.24,125.98,125.92,7.34019357]
[1766164210681,25.24,125.98,125.9,31.07019357]
[1766164210881,25.24,125.96,125.85,33.67915679]
[1766164211179,0.05651244,125.92,125.89,0.05796082]
[1766164212679,25.29651244,125.92,125.83,23.73]
[1766164212879,25.24,125.92,125.84,46.92]
[1766164213576,0.05506612,125.89,125.87,0.06093156]
[1766164213774,0.05506612,125.89,125.87,0.00093156]
[1766164214875,0.05506612,125.89,125.83,23.73]
[1766164215076,25.29506612,125.89,125.81,70.65]
[1766164215275,25.24,125.89,125.81,23.73]
[1766164215768,32.3932,125.89,125.81,23.73]
[1766164215974,0.05210285,125.86,125.81,23.73]
[1766164217267,0.05210285,125.86,125.79,7.1583]
[1766164217471,0.05210285,125.86,125.79,77.8083]
[1766164217677,0.05210285,125.86,125.8,30.8879]
[1766164218184,0.05210285,125.86,125.81,23.73]
[1766164218682,0.00210285,125.86,125.82,24.31]
[1766164219070,24.25,125.95,125.84,24.31]
[1766164219288,24.25,125.95,125.86,24.31]
[1766164219783,7.1509,125.93,125.86,24.31]
[1766164220181,0.0514842,125.91,125.88,0.05518662]
[1766164222085,0.0514842,125.91,125.85,24.31]
[1766164222285,24.3014842,125.91,125.84,46.94]
[1766164222587,24.3014842,125.91,125.83,7.1561]
[1766164222782,24.25,125.91,125.83,7.1561]
[1766164222980,0.0591035,125.88,125.83,31.4661]
[1766164223175,31.4005,125.94,125.84,24.31]
[1766164223381,24.25,125.93,125.84,24.31]
[1766164224093,0.05101581,125.9,125.87,0.05511162]
[1766164225288,0.00101581,125.9,125.87,0.05511162]
[1766164225482,0.00101581,125.9,125.87,24.36511162]
[1766164225886,0.00101581,125.9,125.87,82.22903341]
[1766164226087,31.3993,125.96,125.88,24.31]
[1766164226987,24.25,125.96,125.88,24.31]
[1766164227181,24.25,125.96,125.91,0.05959491]
[1766164227182,0.05607042,125.93,125.91,0.05959491]
[1766164230390,24.25,125.98,125.91,24.36959491]
[1766164230585,24.25,125.98,125.91,24.31]
[1766164231189,24.25,125.97,125.89,46.92]
[1766164231497,0.05067748,125.95,125.89,46.92]
[1766164232385,0.05067748,125.95,125.91,0.0507519]
[1766164233392,0.05067748,125.95,125.92,24.31]
[1766164233393,0.00067748,125.95,125.92,24.31]
[1766164233695,24.25,126.02,125.92,24.31]
[1766164233896,24.25,126.02,125.95,7.1494]
[1766164234590,24.25,126.02,125.95,31.4894]
[1766164234793,0.05070457,126.0,125.97,0.05318914]
[1766164243386,0.00070457,126.0,125.97,135.58908914]
[1766164243690,25.71,126.07,125.98,24.34]
[1766164244085,25.71,126.07,126.0,31.4866]
[1766164244293,25.71,126.07,125.99,46.9]
[1766164244594,0.06040126,126.04,125.99,46.9]
[1766164244797,0.06040126,126.04,125.97,24.34]
[1766164244992,0.06040126,126.04,125.98,46.9]
[1766164245600,0.06040126,126.04,126.0,0.0587638]
[1766164246583,25.77040126,126.04,126.0,0.0587638]
[1766164246896,25.77040126,126.04,125.97,46.9]
[1766164247201,25.77040126,126.04,125.95,46.9]
[1766164247497,25.71,126.04,125.95,46.9]
[1766164247697,0.05919772,126.01,125.98,0.05874636]
[1766164248393,0.05919772,126.01,125.95,46.9]
[1766164249196,0.05919772,126.01,125.94,31.4897]
[1766164249388,25.76919772,126.01,125.96,0.04305042]
[1766164250185,25.71,126.0,125.96,0.00305042]
[1766164250594,25.71,126.0,125.92,54.0508]
[1766164250997,32.8569,126.0,125.92,54.0508]
[1766164251302,25.71,125.99,125.91,24.34]
[1766164251507,0.05589658,125.96,125.91,24.34]
[1766164251799,111.1684,126.01,125.9,46.9]
[1766164251800,25.71,126.01,125.92,7.20286941]
[1766164252001,25.71,126.01,125.93,24.34]
[1766164252993,0.05630903,125.98,125.96,0.0503859]
[1766164254900,0.05630903,125.98,125.97,7.5299853]
[1766164255106,0.05630903,125.98,125.93,24.34]
[1766164255509,25.76630903,125.98,125.91,54.0517]
[1766164255706,25.71,125.98,125.91,78.3917]
[1766164255909,32.8569,126.0,125.92,24.34]
[1766164256210,0.0514169,125.97,125.92,24.34]
[1766164256705,0.0014169,125.97,125.92,24.34]
[1766164257005,0.0014169,125.97,125.94,31.49]
[1766164257205,0.0014169,125.97,125.95,24.34]
[1766164257707,0.0014169,125.97,125.95,24.39551068]
[1766164258100,0.0014169,125.97,125.95,31.54491068]
[1766164259008,0.0014169,125.97,125.95,78.44491068]
[1766164259408,0.0014169,125.97,125.96,24.34]
[1766164259904,0.0014169,125.97,125.96,25.92]
[1766164260108,25.71,126.06,125.98,7.1475]
[1766164260312,25.71,126.06,125.98,31.4875]
[1766164260811,25.71,126.05,125.99,46.9]
[1766164261307,0.05210291,126.03,126.01,0.05109047]
[1766164261507,0.00210291,126.03,126.01,0.05109047]
[1766164262812,0.00210291,126.03,126.01,24.39109047]
[1766164263310,0.00210291,126.03,126.02,24.34]
[1766164264309,24.41,126.13,126.03,23.44]
[1766164264496,24.41,126.11,126.03,23.44]
[1766164265203,0.05566357,126.08,126.06,0.05149341]
[1766164265709,118.1947,126.14,126.06,0.05149341]
[1766164265710,31.549,126.14,126.06,0.05149341]
[1766164265909,24.41,126.13,126.03,23.44]
[1766164266209,31.5497,126.13,126.03,23.44]
[1766164266603,0.05890672,126.09,126.07,0.05268501]
[1766164266907,24.46890672,126.09,126.02,7.1454]
[1766164267095,24.46890672,126.09,126.03,7.51345331]
[1766164267296,24.46890672,126.09,126.01,70.34]
[1766164267609,24.41,126.12,126.02,23.44]
[1766164267802,0.05326033,126.08,126.06,0.05354107]
[1766164268601,0.05326033,126.08,126.06,0.00354107]
[1766164269404,24.46326033,126.08,126.01,46.9]
[1766164270202,24.46326033,126.08,126.03,0.05413913]
[1766164274711,0.05326033,126.08,126.03,0.05413913]
[1766164274917,0.05326033,126.08,126.03,23.49413913]
[1766164275611,0.05326033,126.08,126.03,0.05413913]
[1766164278414,0.00326033,126.08,126.03,25.39413913]
[1766164279615,0.00326033,126.08,126.04,7.1442]
[1766164279822,24.89326033,126.08,126.03,0.05413913]
[1766164280123,32.03576033,126.08,126.03,0.05413913]
[1766164280506,24.89326033,126.08,126.03,0.05413913]
[1766164280717,24.89,126.07,126.03,0.00413913]
[1766164281419,32.033,126.07,126.03,0.00413913]
[1766164282921,32.0335,126.06,126.03,0.00413913]
[1766164283115,24.89,126.05,125.97,79.3681]
[1766164283910,24.89,126.05,125.98,25.34]
[1766164284117,0.05525537,126.03,126.0,0.05432885]
[1766164285022,0.05525537,126.03,126.01,7.54826821]
[1766164285227,0.05525537,126.03,126.0,0.05432885]
[1766164285228,0.05525537,126.03,126.02,7.54826821]
[1766164287123,0.05525537,126.03,126.02,6.821e-05]
[1766164287420,0.05525537,126.03,126.0,0.05432885]
[1766164287608,24.94525537,126.03,126.0,0.00432885]
[1766164288023,32.09045537,126.03,126.0,0.00432885]
[1766164288818,32.09045537,126.03,125.97,46.88]
[1766164289114,24.89,126.01,125.93,79.3703]
[1766164290024,24.89,126.01,125.93,72.22]
[1766164290025,0.0524259,125.98,125.93,72.22]
[1766164296026,25.0624259,125.98,125.93,46.88]
[1766164296528,25.0624259,125.98,125.9,24.87]
[1766164296729,0.05243699,125.95,125.9,24.87]
[1766164297630,0.05243699,125.95,125.91,24.87]
[1766164298528,0.05243699,125.95,125.91,32.0218]
[1766164299323,0.05243699,125.95,125.91,24.87]
[1766164299726,0.05243699,125.95,125.89,71.75]
[1766164301028,0.00243699,125.95,125.9,24.87]
[1766164301932,0.00243699,125.95,125.91,0.05]
[1766164303430,0.00243699,125.95,125.91,24.92]
[1766164303835,7.147,126.0,125.91,24.92]
[1766164304039,25.01,126.01,125.92,24.87]
[1766164304535,32.1563,126.01,125.92,24.87]
[1766164304837,0.05269023,125.98,125.95,0.05243699]
[1766164305438,0.00269023,125.98,125.95,0.05243699]
[1766164307537,0.00269023,125.98,125.95,0.00243699]
[1766164307538,25.01269023,125.98,125.95,0.00243699]
[1766164307841,25.01269023,125.98,125.9,24.87]
[1766164307842,0.00269023,125.98,125.9,24.87]
[1766164308033,25.01,126.01,125.9,24.87]
[1766164308635,0.06027783,125.97,125.94,24.92]
[1766164308836,25.01,126.01,125.94,24.92]
[1766164309239,25.01,126.01,125.94,0.05]
[1766164309434,25.01,126.01,125.94,24.92]
[1766164309740,5.8877748,126.03,125.94,24.92]
[1766164309741,7.146,126.02,125.94,32.0699]
[1766164310045,0.05419663,125.99,125.97,0.05624754]
[1766164313540,0.05419663,125.99,125.94,24.87]
[1766164313744,0.05419663,125.99,125.92,32.0209]
[1766164314442,0.05419663,125.99,125.92,24.87]
[1766164314635,25.06419663,125.99,125.94,0.05403029]
[1766164316840,32.21189663,125.99,125.94,0.05403029]
[1766164317051,25.01,125.98,125.94,0.05403029]
[1766164317236,10.96898173,125.99,125.94,0.05403029]
[1766164317541,7.20189663,125.99,125.94,0.05403029]
[1766164317943,0.05419663,125.99,125.94,0.05403029]
[1766164318644,25.01,125.96,125.89,7.1526]
[1766164318945,25.01,125.96,125.89,32.0226]
[1766164319338,25.01,125.96,125.9,24.87]
[1766164319739,0.05230043,125.94,125.9,24.87]
[1766164320550,25.01,125.99,125.91,24.92]
[1766164320750,25.01,125.99,125.91,24.87]
[1766164321144,25.01,126.02,125.93,24.87]
[1766164321340,25.01,126.02,125.93,28.6370851]
[1766164321540,0.05440184,125.99,125.96,0.05230043]
[1766164327857,0.00440184,125.99,125.96,31.83110043]
[1766164328347,24.8,126.04,125.97,24.63]
[1766164328850,31.9445,126.04,125.97,24.63]
[1766164329253,0.05020486,126.02,125.99,0.05779511]
[1766164331448,739.2433,126.13,125.99,24.68779511]
[1766164331449,24.8,126.09,125.99,24.68779511]
[1766164331752,28.5670851,126.09,126.0,24.63]
[1766164332551,0.05426795,126.06,126.03,0.05474843]
[1766164336952,24.85426795,126.06,126.03,0.00474843]
[1766164337150,0.05426795,126.06,126.03,0.00474843]
[1766164343058,0.05426795,126.06,125.99,24.02]
[1766164343059,23.57,126.05,125.99,24.02]
[1766164344140,0.06112957,126.03,126.01,0.06067728]
[1766164345152,0.06112957,126.03,126.01,0.00067728]
[1766164351862,0.06112957,126.03,125.98,24.02]
[1766164352858,0.06112957,126.03,125.99,0.04148141]
[1766164357563,0.06112957,126.03,125.99,0.04148141]
[1766164358064,0.06112957,126.03,125.99,7.18868141]
[1766164358363,0.06112957,126.03,125.99,0.04148141]
[1766164360261,24.23112957,126.03,125.99,0.04148141]
[1766164365668,0.06112957,126.03,125.99,25.81148141]
[1766164367271,24.17,126.06,126.0,25.77]
[1766164367983,24.17,126.08,126.01,72.65]
[1766164368380,0.05874348,126.06,126.03,0.05020601]
[1766164368971,24.17,126.1,126.03,25.82020601]
[1766164369669,24.17,126.09,126.03,0.05020601]
[1766164369967,0.0596175,126.07,126.03,0.05020601]
[1766164370171,24.2296175,126.07,126.03,0.05020601]
[1766164370555,24.2296175,126.07,126.03,0.00020601]
[1766164371272,35.13564481,126.07,126.03,0.00020601]
[1766164371479,24.17,126.06,126.03,0.00020601]
[1766164379672,7.2026175,126.07,126.03,0.00020601]
[1766164380072,31.3726175,126.07,126.03,0.00020601]
[1766164380372,24.17,126.06,126.03,0.00020601]
[1766164382867,0.0596175,126.07,126.03,0.00020601]
[1766164383073,0.0596175,126.07,126.03,25.77020601]
[1766164383779,0.0596175,126.07,126.03,0.00020601]
[1766164384167,23.4596175,126.07,126.03,0.00020601]
[1766164384680,23.4,126.06,126.03,0.00020601]
[1766164387888,30.5435,126.06,126.03,0.00020601]
[1766164389690,23.4,126.06,126.03,0.00020601]
[1766164395695,0.0596175,126.07,126.03,0.00020601]
[1766164396494,23.4596175,126.07,126.03,0.00020601]
[1766164397300,0.0596175,126.07,126.03,0.00020601]
[1766164399205,25.8296175,126.07,126.03,0.00020601]
[1766164401404,0.0596175,126.07,126.03,0.00020601]
[1766164401708,25.8296175,126.07,126.03,0.00020601]
[1766164402109,0.0596175,126.07,126.03,0.00020601]
[1766164402803,25.8296175,126.07,126.03,0.00020601]
[1766164403508,32.9134,126.06,126.03,0.00020601]
[1766164404409,25.77,126.06,126.03,0.00020601]
[1766164406904,25.77,126.06,125.97,7.39522712]
[1766164407211,31.64969073,126.02,125.93,31.40522712]
[1766164407412,31.64969073,126.02,125.92,7.39522712]
[1766164407716,31.64969073,126.02,125.91,70.89]
[1766164407717,25.77,125.99,125.91,70.89]
[1766164407900,0.05455513,125.96,125.94,0.05071305]
[1766164409509,0.00455513,125.96,125.94,24.06071305]
[1766164413220,0.00455513,125.96,125.94,0.05071305]
[1766164417418,25.95455513,125.96,125.89,23.59]
[1766164417621,25.95455513,125.96,125.89,70.49]
[1766164417926,25.95455513,125.96,125.9,23.59]
[1766164418322,25.95455513,125.96,125.92,0.05047721]
[1766164418923,0.00455513,125.96,125.92,0.05047721]
[1766164419325,0.00455513,125.96,125.92,23.64047721]
[1766164419913,0.00455513,125.96,125.92,0.05047721]
[1766164420422,0.00455513,125.96,125.92,23.64047721]
[1766164421420,0.00455513,125.96,125.92,0.00047721]
[1766164421920,25.95455513,125.96,125.92,0.00047721]
[1766164423122,25.95,125.95,125.92,0.00047721]
[1766164424238,25.95,125.95,125.89,23.59]
[1766164424728,33.0998,125.95,125.89,23.59]
[1766164424922,33.0998,125.95,125.87,70.49]
[1766164425328,0.05695781,125.92,125.9,0.05294271]
[1766164429636,25.95,125.95,125.9,0.05294271]
[1766164430540,0.05904353,125.94,125.9,0.05294271]
[1766164430739,26.00904353,125.94,125.9,0.05294271]
[1766164431635,25.95,125.93,125.87,46.9]
[1766164432739,0.05612099,125.91,125.89,0.00091607]
[1766164432942,26.00612099,125.91,125.87,46.9]
[1766164435539,26.00612099,125.91,125.85,7.155]
[1766164437345,26.00612099,125.91,125.83,54.0759]
[1766164437536,0.05328661,125.88,125.83,46.92]
[1766164438036,0.05328661,125.88,125.83,70.51]
[1766164438745,0.05328661,125.88,125.84,7.1557]
[1766164439142,0.05328661,125.88,125.83,70.51]
[1766164440745,0.00328661,125.88,125.84,23.6462195]
[1766164442942,0.00328661,125.88,125.84,0.0562195]
[1766164443144,25.95328661,125.88,125.84,0.0562195]
[1766164444549,0.00328661,125.88,125.84,25.3362195]
[1766164444848,0.00328661,125.88,125.85,29.05262025]
[1766164445351,24.62,125.94,125.86,25.28]
[1766164445537,24.62,125.94,125.88,25.28]
[1766164445738,24.62,125.94,125.88,29.05262025]
[1766164446358,0.05984521,125.92,125.9,0.05347046]
[1766164447347,71.54,125.96,125.9,0.05347046]
[1766164448550,0.05426119,125.94,125.9,0.05347046]
[1766164453061,24.67426119,125.94,125.9,0.05347046]
[1766164454351,0.05426119,125.94,125.9,0.05347046]
[1766164455057,24.67426119,125.94,125.9,0.05347046]
[1766164458951,24.67426119,125.94,125.9,0.00347046]
[1766164460657,25.18,125.93,125.86,46.92]
[1766164461665,0.05877521,125.91,125.88,0.05977057]
[1766164461851,25.23877521,125.91,125.88,0.05977057]
[1766164462869,25.23877521,125.91,125.86,46.92]
[1766164463052,25.23877521,125.91,125.86,54.0746]
[1766164463462,25.23877521,125.91,125.86,46.92]
[1766164465560,0.05877521,125.91,125.86,70.36]
[1766164465771,7.1507,125.94,125.87,27.21262025]
[1766164466062,32.3295,125.96,125.88,23.44]
[1766164466263,25.18,125.95,125.88,23.44]
[1766164466864,0.05575069,125.93,125.9,0.05677465]
[1766164468561,25.23575069,125.93,125.9,0.05677465]
[1766164470864,0.05575069,125.93,125.9,0.05677465]
[1766164471066,0.05575069,125.93,125.9,23.49677465]
[1766164474669,0.05575069,125.93,125.9,30.64917465]
[1766164478262,0.05575069,125.93,125.9,7.20917465]
[1766164478467,0.05575069,125.93,125.9,0.05677465]
[1766164479570,23.69575069,125.93,125.9,0.05677465]
[1766164479867,27.46837094,125.93,125.86,77.4843]
[1766164480373,27.46837094,125.93,125.86,70.33]
[1766164481472,23.64,125.92,125.86,70.33]
[1766164481773,0.05508225,125.9,125.86,70.33]
[1766164483170,0.05508225,125.9,125.86,46.92]
[1766164483375,0.05508225,125.9,125.87,23.41]
[1766164484172,0.05508225,125.9,125.86,46.92]
[1766164486171,23.64,125.94,125.87,23.41]
[1766164487078,0.05582432,125.92,125.89,0.05120984]
[1766164487968,23.69582432,125.92,125.89,0.05120984]
[1766164488879,0.05582432,125.92,125.89,0.05120984]
[1766164489879,23.69582432,125.92,125.86,46.92]
[1766164491271,23.69582432,125.92,125.86,70.33]
[1766164492783,30.84732432,125.92,125.86,70.33]
[1766164494084,23.69582432,125.92,125.86,70.33]
[1766164495285,27.41165776,125.91,125.86,46.92]
[1766164495485,27.41165776,125.91,125.83,30.5659]
[1766164495687,0.0586304,125.88,125.83,30.5659]
[1766164496383,0.0586304,125.88,125.84,7.1557]
[1766164497085,0.0586304,125.88,125.83,23.41]
[1766164497484,0.0586304,125.88,125.82,54.0765]
[1766164497485,0.0586304,125.88,125.84,23.41]
[1766164498688,0.0586304,125.88,125.84,30.5658]
[1766164498879,0.0586304,125.88,125.84,23.41]
[1766164501194,30.7912,125.93,125.85,23.41]
[1766164502087,23.64,125.92,125.85,23.41]
[1766164502291,0.05741011,125.9,125.87,0.05758519]
[1766164502496,0.05741011,125.9,125.85,23.41]
[1766164502497,23.69741011,125.9,125.83,30.80522712]
[1766164502789,23.69741011,125.9,125.83,23.41]
[1766164503583,23.64,125.89,125.82,54.0966]
[1766164503783,0.05140841,125.87,125.82,77.5066]
[1766164504091,0.05140841,125.87,125.82,70.35]
[1766164505181,0.05140841,125.87,125.8,25.25]
[1766164505377,25.59,125.89,125.82,25.30843658]
[1766164505982,25.59,125.91,125.82,25.30843658]
[1766164506189,25.59,125.93,125.86,25.25]
[1766164506496,25.64229991,125.91,125.88,0.05257422]
[1766164506684,25.64229991,125.91,125.84,25.25]
[1766164506995,25.64229991,125.91,125.84,32.4057]
[1766164507184,25.64229991,125.91,125.84,25.25]
[1766164507892,25.64229991,125.91,125.86,0.02457077]
[1766164508089,32.79429991,125.91,125.86,0.02457077]
[1766164508496,25.64229991,125.91,125.86,0.02457077]
[1766164510793,25.64229991,125.91,125.86,0.00457077]
[1766164511690,32.7425,125.9,125.86,0.00457077]
[1766164512186,7.1525,125.9,125.86,0.00457077]
[1766164512398,25.59,125.89,125.86,0.00457077]
[1766164517097,25.59,125.88,125.8,32.4076]
[1766164517290,25.59,125.88,125.81,25.25]
[1766164517694,32.7437,125.88,125.81,32.4075]
[1766164517901,25.59,125.88,125.82,25.25]
[1766164518093,0.05797299,125.86,125.82,25.25]
[1766164518294,0.05797299,125.86,125.8,24.91]
[1766164518899,0.05797299,125.86,125.81,32.0675]
[1766164519100,0.05156248,125.85,125.81,32.0675]
[1766164519493,0.05156248,125.85,125.82,24.91]
[1766164520203,0.00156248,125.85,125.82,32.0669]
[1766164520395,0.00156248,125.85,125.82,24.91]
[1766164521102,0.00156248,125.85,125.82,24.96]
[1766164526709,0.00156248,125.85,125.82,32.1169]
[1766164526909,0.00156248,125.85,125.83,24.91]
[1766164528207,0.00156248,125.85,125.83,32.0663]
[1766164528511,32.5816,125.92,125.85,24.91]
[1766164528710,32.5816,125.92,125.85,32.0651]
[1766164528904,32.5816,125.92,125.86,24.91]
[1766164529104,32.582,125.91,125.84,24.91]
[1766164529300,32.582,125.91,125.84,71.85]
[1766164529507,0.05923864,125.89,125.86,0.05156248]
[1766164530514,25.48923864,125.89,125.86,0.00156248]
[1766164531213,25.43,125.88,125.82,24.91]
[1766164532119,0.05460447,125.86,125.82,24.91]
[1766164533918,0.05460447,125.86,125.8,24.91]
[1766164534216,25.58460447,125.86,125.8,24.91]
[1766164535113,25.53,125.85,125.79,46.94]
[1766164535411,0.06055261,125.83,125.79,71.53]
[1766164539518,0.06055261,125.83,125.79,24.59]
[1766164539719,0.00055261,125.83,125.79,24.59]
[1766164540020,0.00055261,125.83,125.8,24.59]
[1766164540225,0.00055261,125.83,125.81,71.53]
[1766164540722,0.00055261,125.83,125.81,71.58396895]
[1766164541210,0.00055261,125.83,125.81,24.64396895]
[1766164543114,25.53,125.91,125.83,24.59]
[1766164543315,25.53,125.91,125.84,24.59]
[1766164544120,0.05459184,125.89,125.86,0.05093523]
[1766164545718,25.58459184,125.89,125.86,0.00093523]
[1766164545921,0.05459184,125.89,125.86,0.00093523]
[1766164547221,0.00459184,125.89,125.86,24.59093523]
[1766164547408,0.00459184,125.89,125.86,31.74543523]
[1766164549426,0.00459184,125.89,125.86,0.00093523]
[1766164549630,25.53459184,125.89,125.86,0.00093523]
[1766164556330,0.00459184,125.89,125.86,0.00093523]
[1766164556527,24.26350801,125.98,125.89,24.59]
[1766164556726,25.53,125.99,125.91,24.59]
[1766164557029,25.53,125.99,125.93,24.59]
[1766164557629,0.05478791,125.97,125.95,0.05320237]
[1766164560813,0.00478791,125.97,125.95,0.05320237]
[1766164561131,0.00478791,125.97,125.95,24.64320237]
[1766164561824,0.00478791,125.97,125.95,0.05320237]
[1766164564534,0.00478791,125.97,125.95,0.00320237]
[1766164564733,24.35478791,125.97,125.89,32.2925]
[1766164564929,24.35,125.97,125.9,46.92]
[1766164565930,0.05715608,125.95,125.92,0.05994806]
[1766164571726,24.35,125.99,125.92,25.19994806]
[1766164572129,28.11676764,125.99,125.92,0.05994806]
[1766164572426,24.35,125.96,125.89,25.14]
[1766164573429,0.0572587,125.94,125.91,0.05038355]
[1766164577229,28.11676764,125.98,125.91,32.34208355]
[1766164577438,24.35,126.0,125.92,25.14]
[1766164577743,24.35,126.0,125.93,72.06]
[1766164577939,24.35,126.02,125.94,25.14]
[1766164578137,0.05808397,125.99,125.97,0.05798207]
[1766164579433,24.98808397,125.99,125.93,46.92]
[1766164580338,24.98808397,125.99,125.92,31.5109]
[1766164580543,24.98808397,125.99,125.94,0.05467615]
[1766164591150,24.98808397,125.99,125.94,31.56467615]
[1766164591151,0.05808397,125.99,125.94,31.56467615]
[1766164591364,0.05808397,125.99,125.94,24.41467615]
[1766164591553,3.76676764,126.03,125.94,24.41467615]
[1766164591554,24.93,126.03,125.94,24.41467615]
[1766164591848,24.93,126.03,125.96,7.1489]
[1766164592044,24.93,126.03,125.96,31.5089]
[1766164592447,24.93,126.03,125.98,0.05428904]
[1766164592654,0.05331724,126.01,125.98,0.05428904]
[1766164594455,0.00331724,126.01,125.98,25.07428904]
[1766164595150,0.00331724,126.01,125.98,32.22178904]
[1766164596946,0.00331724,126.01,125.98,0.05428904]
[1766164603063,0.00331724,126.01,125.98,25.07428904]
[1766164603250,0.00331724,126.01,125.99,32.1671]
[1766164603455,25.97,126.08,126.0,71.92]
[1766164603656,25.97,126.08,126.01,25.02]
[1766164604054,33.1109,126.11,126.02,25.02]
[1766164604260,125.3044,126.17,126.02,25.02]
[1766164604261,25.97,126.13,126.03,25.02]
[1766164604462,0.05812708,126.09,126.07,0.0522057]
[1766164604653,25.97,126.13,126.07,0.0522057]
[1766164605357,46.9,126.17,126.07,32.2147057]
[1766164605358,25.97,126.16,126.07,32.2147057]
[1766164605663,0.05905752,126.13,126.1,0.05681848]
[1766164606165,0.05905752,126.13,126.07,25.02]
[1766164606660,26.02905752,126.13,126.05,46.9]
[1766164606866,25.97,126.13,126.05,46.9]
[1766164607266,0.05364863,126.1,126.08,0.05394961]
[1766164610669,26.02364863,126.1,126.08,0.00394961]
[1766164610971,27.60364863,126.1,126.02,46.88]
[1766164611274,33.1112,126.1,126.02,46.88]
[1766164611576,25.97,126.09,126.02,46.88]
[1766164611775,0.05008468,126.07,126.04,0.05035208]
[1766164620875,0.05008468,126.07,126.04,0.00035208]
[1766164620876,26.02008468,126.07,126.04,0.00035208]
[1766164622368,25.97,126.06,125.98,32.1675]
[1766164622872,25.97,126.06,125.99,25.02]
[1766164623375,0.05511328,126.04,126.01,0.0539292]
[1766164626071,25.27,126.1,126.01,24.0339292]
[1766164626372,25.27,126.1,126.01,23.98]
[1766164626769,72.13,126.13,126.05,23.98]
[1766164627070,25.27,126.12,126.05,23.98]
[1766164627265,0.05945227,126.1,126.07,0.05066389]
[1766164629176,25.27,126.15,126.07,24.03066389]
[1766164629477,25.27,126.15,126.08,7.142]